[Event "*** MasterClass Titled Tuesday Blitz"]
[Site "Chess.com"]
[Date "2017.11.07"]
[Round "5"]
[White "amurdercastle"]
[Black "ChristopherYoo"]
[Result "0-1"]
[WhiteElo "2292"]
[BlackElo "2263"]
[TimeControl "180+2"]
[EndTime "15:18:26 PST"]
[Termination "ChristopherYoo won by checkmate"]

1. d4 {[%clk 0:03:01.9]} 1... Nf6 {[%clk 0:03:00.4]} 2. Bg5 {[%clk 0:03:02.9]}
2... d5 {[%clk 0:02:59.5]} 3. Nd2 {[%clk 0:02:57.4]} 3... c5 {[%clk 0:02:59.3]}
4. e3 {[%clk 0:02:58.2]} 4... Nc6 {[%clk 0:02:56]} 5. c3 {[%clk 0:02:58.5]} 5...
e6 {[%clk 0:02:45.5]} 6. Bd3 {[%clk 0:02:58.6]} 6... Be7 {[%clk 0:02:39.8]} 7.
f4 {[%clk 0:02:55.3]} 7... O-O {[%clk 0:02:30.5]} 8. Ngf3 {[%clk 0:02:54.9]}
8... Ng4 {[%clk 0:02:29.1]} 9. Bxe7 {[%clk 0:02:44.7]} 9... Qxe7 {[%clk
0:02:29.3]} 10. Qe2 {[%clk 0:02:44]} 10... f5 {[%clk 0:02:30.3]} 11. O-O {[%clk
0:02:44.1]} 11... Nf6 {[%clk 0:02:30]} 12. Ne5 {[%clk 0:02:34.5]} 12... Ne4
{[%clk 0:02:26.8]} 13. Nxe4 {[%clk 0:02:24.1]} 13... fxe4 {[%clk 0:02:27.1]} 14.
Bc2 {[%clk 0:02:22.8]} 14... Nxe5 {[%clk 0:02:22]} 15. fxe5 {[%clk 0:01:59.4]}
15... Bd7 {[%clk 0:02:21.1]} 16. Qg4 {[%clk 0:01:59.6]} 16... cxd4 {[%clk
0:01:55.4]} 17. cxd4 {[%clk 0:01:51.8]} 17... Bb5 {[%clk 0:01:53.9]} 18. Rfc1
{[%clk 0:01:40.3]} 18... Rac8 {[%clk 0:01:46.3]} 19. Bb3 {[%clk 0:01:38.2]}
19... Rc6 {[%clk 0:01:19.1]} 20. Rxc6 {[%clk 0:01:29.6]} 20... Bxc6 {[%clk
0:01:18.8]} 21. Rc1 {[%clk 0:01:27.8]} 21... a5 {[%clk 0:01:08.7]} 22. Qg3
{[%clk 0:01:16]} 22... a4 {[%clk 0:01:07.4]} 23. Bd1 {[%clk 0:01:15.6]} 23...
Qb4 {[%clk 0:01:04.5]} 24. Bg4 {[%clk 0:01:06.5]} 24... Bd7 {[%clk 0:00:39.2]}
25. Rc2 {[%clk 0:01:01.2]} 25... Rc8 {[%clk 0:00:25.6]} 26. Rxc8+ {[%clk
0:00:55.4]} 26... Bxc8 {[%clk 0:00:26.4]} 27. Qf2 {[%clk 0:00:54.5]} 27... a3
{[%clk 0:00:23.2]} 28. bxa3 {[%clk 0:00:53.6]} 28... Qxa3 {[%clk 0:00:20.5]} 29.
h4 {[%clk 0:00:52.7]} 29... Qe7 {[%clk 0:00:20]} 30. Kh2 {[%clk 0:00:52.4]}
30... Bd7 {[%clk 0:00:19.6]} 31. Bh3 {[%clk 0:00:53]} 31... Bc6 {[%clk
0:00:19.5]} 32. Qf4 {[%clk 0:00:49.1]} 32... Bd7 {[%clk 0:00:18.2]} 33. Qg4
{[%clk 0:00:48.8]} 33... b5 {[%clk 0:00:15.7]} 34. g3 {[%clk 0:00:44.6]} 34...
b4 {[%clk 0:00:16.1]} 35. Qe2 {[%clk 0:00:45.6]} 35... Qe8 {[%clk 0:00:15.1]}
36. Qa6 {[%clk 0:00:45.2]} 36... Qc8 {[%clk 0:00:09.6]} 37. Qb6 {[%clk
0:00:20.2]} 37... Qc2+ {[%clk 0:00:09.2]} 38. Bg2 {[%clk 0:00:21.7]} 38... Qc8
{[%clk 0:00:06.3]} 39. Qxb4 {[%clk 0:00:22.5]} 39... Qa8 {[%clk 0:00:05.3]} 40.
a3 {[%clk 0:00:23.1]} 40... Qa6 {[%clk 0:00:05.6]} 41. Qb8+ {[%clk 0:00:22]}
41... Kf7 {[%clk 0:00:06.1]} 42. Qc7 {[%clk 0:00:23.3]} 42... Qa4 {[%clk
0:00:06.6]} 43. Qc5 {[%clk 0:00:23.5]} 43... Qb3 {[%clk 0:00:06.9]} 44. Qd6
{[%clk 0:00:23]} 44... Qa4 {[%clk 0:00:07.6]} 45. g4 {[%clk 0:00:22.3]} 45... h6
{[%clk 0:00:08]} 46. h5 {[%clk 0:00:21.8]} 46... Qb5 {[%clk 0:00:08.2]} 47. Qb4
{[%clk 0:00:21.7]} 47... Qd3 {[%clk 0:00:06.5]} 48. Qb7 {[%clk 0:00:21.3]} 48...
Ke7 {[%clk 0:00:07.4]} 49. Qb4+ {[%clk 0:00:21.3]} 49... Kf7 {[%clk 0:00:08.1]}
50. Qd6 {[%clk 0:00:22.6]} 50... Qb5 {[%clk 0:00:07.5]} 51. Qc7 {[%clk 0:00:23]}
51... Qa4 {[%clk 0:00:08.1]} 52. Qd8 {[%clk 0:00:23.2]} 52... Qb5 {[%clk
0:00:08.3]} 53. g5 {[%clk 0:00:23.9]} 53... hxg5 {[%clk 0:00:07.3]} 54. Qxg5
{[%clk 0:00:25.8]} 54... Qe2 {[%clk 0:00:07.6]} 55. Qg6+ {[%clk 0:00:26.1]}
55... Kf8 {[%clk 0:00:07.7]} 56. h6 {[%clk 0:00:26.9]} 56... gxh6 {[%clk
0:00:07.3]} 57. Qxh6+ {[%clk 0:00:28.1]} 57... Ke7 {[%clk 0:00:07]} 58. Qf6+
{[%clk 0:00:29.4]} 58... Ke8 {[%clk 0:00:07.9]} 59. Qh8+ {[%clk 0:00:29.9]}
59... Ke7 {[%clk 0:00:08.5]} 60. Qg7+ {[%clk 0:00:31.4]} 60... Ke8 {[%clk
0:00:09.6]} 61. Qg8+ {[%clk 0:00:27]} 61... Ke7 {[%clk 0:00:10.3]} 62. Qg5+
{[%clk 0:00:28.4]} 62... Ke8 {[%clk 0:00:09.5]} 63. Kg3 {[%clk 0:00:27.6]} 63...
Qe1+ {[%clk 0:00:09.8]} 64. Kg4 {[%clk 0:00:28.4]} 64... Qe2+ {[%clk 0:00:10]}
65. Kh4 {[%clk 0:00:27.9]} 65... Qf2+ {[%clk 0:00:10.7]} 66. Kh5 {[%clk
0:00:27.7]} 66... Qe2+ {[%clk 0:00:06.3]} 67. Kh6 {[%clk 0:00:27.5]} 67... Qf2
{[%clk 0:00:04.4]} 68. Bh3 {[%clk 0:00:27.1]} 68... Qf8+ {[%clk 0:00:04.8]} 69.
Qg7 {[%clk 0:00:23.3]} 69... Qf3 {[%clk 0:00:05.6]} 70. Qg6+ {[%clk 0:00:23.2]}
70... Kd8 {[%clk 0:00:05.2]} 71. Qg5+ {[%clk 0:00:24.1]} 71... Kc7 {[%clk
0:00:04.6]} 72. Bg4 {[%clk 0:00:25.6]} 72... Qg3 {[%clk 0:00:05.4]} 73. Kg6
{[%clk 0:00:26.2]} 73... Qg2 {[%clk 0:00:05.4]} 74. Kf7 {[%clk 0:00:26.6]} 74...
Qf2+ {[%clk 0:00:04.7]} 75. Ke7 {[%clk 0:00:25.6]} 75... Qg3 {[%clk 0:00:04.8]}
76. Kf7 {[%clk 0:00:20.6]} 76... Qg1 {[%clk 0:00:05.1]} 77. Qg6 {[%clk
0:00:20.4]} 77... Qxe3 {[%clk 0:00:05.2]} 78. Bxe6 {[%clk 0:00:21.8]} 78...
Bxe6+ {[%clk 0:00:05.2]} 79. Kxe6 {[%clk 0:00:22]} 79... Qxd4 {[%clk 0:00:05.6]}
80. Qg7+ {[%clk 0:00:23.3]} 80... Kb6 {[%clk 0:00:06.5]} 81. Qd7 {[%clk
0:00:23.6]} 81... e3 {[%clk 0:00:06.9]} 82. Qd6+ {[%clk 0:00:23.6]} 82... Kb5
{[%clk 0:00:07]} 83. Kd7 {[%clk 0:00:24.9]} 83... e2 {[%clk 0:00:06.5]} 84. e6
{[%clk 0:00:24.7]} 84... e1=Q {[%clk 0:00:06.7]} 85. e7 {[%clk 0:00:26.6]} 85...
Qg4+ {[%clk 0:00:06.4]} 86. Kd8 {[%clk 0:00:26.5]} 86... Qg8+ {[%clk 0:00:06.4]}
87. Kd7 {[%clk 0:00:27.8]} 87... Qg4+ {[%clk 0:00:06.8]} 88. Kd8 {[%clk
0:00:29]} 88... Qge4 {[%clk 0:00:07.3]} 89. Qd7+ {[%clk 0:00:26.6]} 89... Kc4
{[%clk 0:00:07.8]} 90. a4 {[%clk 0:00:24.5]} 90... d4 {[%clk 0:00:07.5]} 91.
Qc7+ {[%clk 0:00:21.1]} 91... Kb3 {[%clk 0:00:07.7]} 92. Qb6+ {[%clk 0:00:21.3]}
92... Kxa4 {[%clk 0:00:08.1]} 93. Qa6+ {[%clk 0:00:22.4]} 93... Qa5+ {[%clk
0:00:08.2]} 94. Qxa5+ {[%clk 0:00:23.3]} 94... Kxa5 {[%clk 0:00:09.7]} 95. e8=Q
{[%clk 0:00:25.1]} 95... Qxe8+ {[%clk 0:00:10.6]} 96. Kxe8 {[%clk 0:00:27]}
96... d3 {[%clk 0:00:12]} 97. Kd7 {[%clk 0:00:28.9]} 97... d2 {[%clk 0:00:13.7]}
98. Kc6 {[%clk 0:00:30.8]} 98... d1=Q {[%clk 0:00:14.9]} 99. Kb7 {[%clk
0:00:32.7]} 99... Qd6 {[%clk 0:00:15.4]} 100. Ka8 {[%clk 0:00:34.6]} 100... Qd7
{[%clk 0:00:15.2]} 101. Kb8 {[%clk 0:00:35.7]} 101... Kb6 {[%clk 0:00:16.2]}
102. Ka8 {[%clk 0:00:37.6]} 102... Qc8# {[%clk 0:00:17.3]} 0-1

[Event "*** MasterClass Titled Tuesday Blitz"]
[Site "Chess.com"]
[Date "2017.11.07"]
[Round "6"]
[White "thegreendog"]
[Black "amurdercastle"]
[Result "1-0"]
[WhiteElo "2349"]
[BlackElo "2285"]
[TimeControl "180+2"]
[EndTime "15:21:34 PST"]
[Termination "thegreendog won by resignation"]

1. d4 {[%clk 0:03:01.9]} 1... d5 {[%clk 0:03:00.5]} 2. c4 {[%clk 0:03:02.1]}
2... e6 {[%clk 0:03:00.8]} 3. Nf3 {[%clk 0:03:02.5]} 3... Nf6 {[%clk 0:03:00.9]}
4. g3 {[%clk 0:03:04]} 4... Bb4+ {[%clk 0:03:01.3]} 5. Bd2 {[%clk 0:03:05]} 5...
Be7 {[%clk 0:02:59]} 6. Bg2 {[%clk 0:03:06.4]} 6... O-O {[%clk 0:03:00.3]} 7.
O-O {[%clk 0:03:07.3]} 7... c6 {[%clk 0:02:57]} 8. Qb3 {[%clk 0:03:07.9]} 8...
Ne4 {[%clk 0:02:57.5]} 9. Rc1 {[%clk 0:03:08.5]} 9... f5 {[%clk 0:02:57.9]} 10.
Nc3 {[%clk 0:03:06.7]} 10... Nd7 {[%clk 0:02:57.4]} 11. Be1 {[%clk 0:03:06.5]}
11... g5 {[%clk 0:02:50.9]} 12. e3 {[%clk 0:03:07.8]} 12... g4 {[%clk
0:02:49.5]} 13. Nd2 {[%clk 0:03:05.1]} 13... h5 {[%clk 0:02:48.3]} 14. cxd5
{[%clk 0:03:06.1]} 14... exd5 {[%clk 0:02:49.1]} 15. Ndxe4 {[%clk 0:03:06.2]}
15... fxe4 {[%clk 0:02:51]} 16. Nxe4 {[%clk 0:03:07.3]} 16... h4 {[%clk
0:02:48.4]} 17. Nc3 {[%clk 0:03:03.4]} 17... Bd6 {[%clk 0:02:46.6]} 18. Nxd5
{[%clk 0:03:00.1]} 18... cxd5 {[%clk 0:02:46.2]} 19. Qxd5+ {[%clk 0:03:00.5]}
1-0

[Event "*** MasterClass Titled Tuesday Blitz"]
[Site "Chess.com"]
[Date "2017.11.07"]
[Round "6"]
[White "popov_m"]
[Black "pKiLz5Rn9b"]
[Result "0-1"]
[WhiteElo "2473"]
[BlackElo "2574"]
[TimeControl "180+2"]
[EndTime "15:22:15 PST"]
[Termination "pKiLz5Rn9b won by resignation"]

1. d4 {[%clk 0:03:01.9]} 1... Nf6 {[%clk 0:03:00.1]} 2. Nf3 {[%clk 0:03:02.3]}
2... e6 {[%clk 0:03:01.4]} 3. c4 {[%clk 0:03:02.9]} 3... b6 {[%clk 0:03:02.1]}
4. g3 {[%clk 0:02:59.6]} 4... Bb7 {[%clk 0:03:03.4]} 5. Bg2 {[%clk 0:03:00.4]}
5... Be7 {[%clk 0:03:03.9]} 6. O-O {[%clk 0:03:01.1]} 6... O-O {[%clk
0:03:05.3]} 7. Nc3 {[%clk 0:03:02.6]} 7... Ne4 {[%clk 0:03:06.2]} 8. Bd2 {[%clk
0:03:02.3]} 8... d5 {[%clk 0:03:06.6]} 9. cxd5 {[%clk 0:02:53.8]} 9... exd5
{[%clk 0:03:07.2]} 10. Rc1 {[%clk 0:02:55.3]} 10... Na6 {[%clk 0:03:07.3]} 11.
Bf4 {[%clk 0:02:53.9]} 11... c5 {[%clk 0:03:08]} 12. Ne5 {[%clk 0:02:39.7]}
12... Re8 {[%clk 0:03:08.2]} 13. Qb3 {[%clk 0:02:14.3]} 13... c4 {[%clk
0:03:02.5]} 14. Qc2 {[%clk 0:02:11.4]} 14... Nxc3 {[%clk 0:03:02.7]} 15. bxc3
{[%clk 0:02:11.4]} 15... Qc8 {[%clk 0:03:00.7]} 16. Bh3 {[%clk 0:01:57.8]} 16...
Qxh3 {[%clk 0:02:57.4]} 0-1

[Event "*** MasterClass Titled Tuesday Blitz"]
[Site "Chess.com"]
[Date "2017.11.07"]
[Round "6"]
[White "Giorno"]
[Black "FearNoEvil12"]
[Result "1-0"]
[WhiteElo "2328"]
[BlackElo "2016"]
[TimeControl "180+2"]
[EndTime "15:23:39 PST"]
[Termination "Giorno won by checkmate"]

1. e4 {[%clk 0:03:01.9]} 1... a6 {[%clk 0:02:59.1]} 2. d4 {[%clk 0:03:01.9]}
2... b5 {[%clk 0:03:00.5]} 3. Nd2 {[%clk 0:03:02.7]} 3... Bb7 {[%clk 0:03:01.6]}
4. Ngf3 {[%clk 0:03:03.9]} 4... e6 {[%clk 0:03:03.1]} 5. Bd3 {[%clk 0:03:04.9]}
5... Nf6 {[%clk 0:03:04.6]} 6. Qe2 {[%clk 0:03:05.4]} 6... d6 {[%clk 0:03:06.1]}
7. c3 {[%clk 0:03:05.9]} 7... Nbd7 {[%clk 0:03:07.3]} 8. O-O {[%clk 0:03:03.7]}
8... Rg8 {[%clk 0:03:08]} 9. e5 {[%clk 0:02:57.6]} 9... Nd5 {[%clk 0:03:06.5]}
10. Ne4 {[%clk 0:02:56.9]} 10... h6 {[%clk 0:03:05.7]} 11. a4 {[%clk 0:02:49.5]}
11... bxa4 {[%clk 0:03:05.3]} 12. Rxa4 {[%clk 0:02:49.3]} 12... g5 {[%clk
0:03:06.7]} 13. exd6 {[%clk 0:02:25.5]} 13... cxd6 {[%clk 0:03:05.9]} 14. Bxa6
{[%clk 0:02:13.9]} 14... Rxa6 {[%clk 0:03:04.8]} 15. Rxa6 {[%clk 0:02:14.7]}
15... Nb8 {[%clk 0:02:44.1]} 16. Ra7 {[%clk 0:02:01.8]} 16... Qb6 {[%clk
0:02:43.3]} 17. Rxb7 {[%clk 0:01:54.6]} 17... Qxb7 {[%clk 0:02:42.4]} 18. c4
{[%clk 0:01:56.1]} 18... Nd7 {[%clk 0:02:33.9]} 19. cxd5 {[%clk 0:01:55.5]}
19... Qxd5 {[%clk 0:02:34.6]} 20. Nc3 {[%clk 0:01:51]} 20... Qf5 {[%clk
0:02:32.5]} 21. d5 {[%clk 0:01:50.7]} 21... g4 {[%clk 0:02:30.1]} 22. Nd4 {[%clk
0:01:49.9]} 22... Qg6 {[%clk 0:02:16.6]} 23. dxe6 {[%clk 0:01:49.9]} 23... Ne5
{[%clk 0:02:17.5]} 24. Qb5+ {[%clk 0:01:45.2]} 24... Ke7 {[%clk 0:02:17.2]} 25.
Nd5+ {[%clk 0:01:45.5]} 25... Kd8 {[%clk 0:02:14.4]} 26. Qb8# {[%clk 0:01:45.8]}
1-0

[Event "*** MasterClass Titled Tuesday Blitz"]
[Site "Chess.com"]
[Date "2017.11.07"]
[Round "6"]
[White "GMHess"]
[Black "florianschwabeneder"]
[Result "1-0"]
[WhiteElo "2573"]
[BlackElo "2430"]
[TimeControl "180+2"]
[EndTime "15:25:39 PST"]
[Termination "GMHess won by resignation"]

1. d4 {[%clk 0:03:01.9]} 1... d5 {[%clk 0:03:00.5]} 2. Nf3 {[%clk 0:03:02.6]}
2... Nf6 {[%clk 0:03:01.1]} 3. g3 {[%clk 0:03:04.1]} 3... e6 {[%clk 0:02:59.5]}
4. Bg2 {[%clk 0:03:05.6]} 4... Be7 {[%clk 0:02:58.9]} 5. O-O {[%clk 0:03:07.1]}
5... b5 {[%clk 0:02:58.6]} 6. a4 {[%clk 0:03:05.6]} 6... b4 {[%clk 0:02:58.9]}
7. c4 {[%clk 0:03:06.7]} 7... bxc3 {[%clk 0:02:57.4]} 8. Nxc3 {[%clk 0:03:00.1]}
8... O-O {[%clk 0:02:56.3]} 9. Bf4 {[%clk 0:03:01]} 9... c5 {[%clk 0:02:32.3]}
10. Nb5 {[%clk 0:03:01.8]} 10... Na6 {[%clk 0:02:30.6]} 11. Rc1 {[%clk
0:02:56.2]} 11... Bd7 {[%clk 0:02:27.8]} 12. Ne5 {[%clk 0:02:52.2]} 12... c4
{[%clk 0:02:23.5]} 13. b3 {[%clk 0:02:44]} 13... cxb3 {[%clk 0:02:07.3]} 14.
Qxb3 {[%clk 0:02:45.9]} 14... Be8 {[%clk 0:02:07.3]} 15. Nc6 {[%clk 0:02:33.4]}
15... Bxc6 {[%clk 0:02:00.2]} 16. Rxc6 {[%clk 0:02:35.3]} 16... Nb8 {[%clk
0:01:46.8]} 17. Rc2 {[%clk 0:02:23.6]} 17... a6 {[%clk 0:01:43]} 18. Nc7 {[%clk
0:02:22.1]} 18... Ra7 {[%clk 0:01:40.9]} 19. Qb6 {[%clk 0:02:22]} 19... Rxc7
{[%clk 0:01:05.5]} 20. Bxc7 {[%clk 0:02:17.7]} 20... Qe8 {[%clk 0:01:06.4]} 21.
Rfc1 {[%clk 0:02:12.2]} 21... Nbd7 {[%clk 0:00:58.3]} 22. Qxa6 {[%clk
0:02:12.4]} 22... Ne4 {[%clk 0:00:58.3]} 23. Bxe4 {[%clk 0:02:06.5]} 23... dxe4
{[%clk 0:00:59.3]} 24. Qb5 {[%clk 0:02:05.6]} 24... Ba3 {[%clk 0:00:56.2]} 25.
Ra1 {[%clk 0:01:58.5]} 25... Qe7 {[%clk 0:00:57]} 26. Rxa3 {[%clk 0:01:53.9]}
26... Qxa3 {[%clk 0:00:58]} 27. Qxd7 {[%clk 0:01:54.2]} 27... Qb3 {[%clk
0:00:58.4]} 28. Qc6 {[%clk 0:01:41.1]} 28... e3 {[%clk 0:00:57.3]} 29. Bd6
{[%clk 0:01:23.9]} 29... exf2+ {[%clk 0:00:57.5]} 30. Kxf2 {[%clk 0:01:25.8]}
1-0

[Event "*** MasterClass Titled Tuesday Blitz"]
[Site "Chess.com"]
[Date "2017.11.07"]
[Round "6"]
[White "Taron_Shagbazyan"]
[Black "Aygehovit1992"]
[Result "0-1"]
[WhiteElo "2556"]
[BlackElo "2534"]
[TimeControl "180+2"]
[EndTime "15:25:43 PST"]
[Termination "Aygehovit1992 won by resignation"]

1. d4 {[%clk 0:03:01.9]} 1... d6 {[%clk 0:03:00.8]} 2. c4 {[%clk 0:03:03.2]}
2... Nf6 {[%clk 0:03:02.5]} 3. Nc3 {[%clk 0:03:04.4]} 3... g6 {[%clk 0:03:04.1]}
4. g3 {[%clk 0:03:05.3]} 4... Bg7 {[%clk 0:03:05.8]} 5. Bg2 {[%clk 0:03:06.8]}
5... O-O {[%clk 0:03:07.4]} 6. e3 {[%clk 0:03:08.3]} 6... Nc6 {[%clk 0:03:08.9]}
7. Nge2 {[%clk 0:03:09.6]} 7... e5 {[%clk 0:03:10.5]} 8. O-O {[%clk 0:03:09.8]}
8... Qe7 {[%clk 0:03:07.4]} 9. d5 {[%clk 0:03:10.1]} 9... Nb8 {[%clk 0:03:07.7]}
10. e4 {[%clk 0:03:11.1]} 10... a5 {[%clk 0:03:08.6]} 11. h3 {[%clk 0:03:10.3]}
11... Na6 {[%clk 0:03:09.7]} 12. Be3 {[%clk 0:03:11.2]} 12... Nh5 {[%clk
0:03:09.5]} 13. Qd2 {[%clk 0:02:57.7]} 13... Nc5 {[%clk 0:03:03.7]} 14. Rae1
{[%clk 0:02:53.7]} 14... f5 {[%clk 0:02:54.7]} 15. exf5 {[%clk 0:02:33.7]} 15...
gxf5 {[%clk 0:02:56.6]} 16. f4 {[%clk 0:02:31.9]} 16... e4 {[%clk 0:02:57.3]}
17. Kh2 {[%clk 0:02:26.9]} 17... Bd7 {[%clk 0:02:44.4]} 18. Nd4 {[%clk
0:02:26.6]} 18... Nd3 {[%clk 0:02:43.8]} 19. Rd1 {[%clk 0:02:21.9]} 19... c5
{[%clk 0:02:43.6]} 20. Ndb5 {[%clk 0:01:47.3]} 20... Rf6 {[%clk 0:02:30.5]} 21.
Qe2 {[%clk 0:01:45.8]} 21... Rh6 {[%clk 0:02:22.9]} 22. Bf2 {[%clk 0:00:56]}
22... Nxf2 {[%clk 0:02:11.5]} 23. Rxf2 {[%clk 0:00:56.3]} 23... Kh8 {[%clk
0:02:11.3]} 24. Qe3 {[%clk 0:00:49.9]} 24... Rg8 {[%clk 0:02:11]} 25. a4 {[%clk
0:00:39]} 25... Nxg3 {[%clk 0:02:06.1]} 26. Qxg3 {[%clk 0:00:13.5]} 26... Bd4
{[%clk 0:02:05.1]} 27. Nxd4 {[%clk 0:00:10.8]} 27... Rxg3 {[%clk 0:02:04.1]} 0-1

[Event "*** MasterClass Titled Tuesday Blitz"]
[Site "Chess.com"]
[Date "2017.11.07"]
[Round "6"]
[White "MagnusCarlsen"]
[Black "Alexander_Moskalenko"]
[Result "1-0"]
[WhiteElo "3035"]
[BlackElo "2689"]
[TimeControl "180+2"]
[EndTime "15:26:17 PST"]
[Termination "MagnusCarlsen won by resignation"]

1. e4 {[%clk 0:03:01.9]} 1... c6 {[%clk 0:03:00.3]} 2. d4 {[%clk 0:03:02.2]}
2... d5 {[%clk 0:03:01.8]} 3. e5 {[%clk 0:03:03.6]} 3... c5 {[%clk 0:03:01.7]}
4. Nf3 {[%clk 0:03:03.5]} 4... Nc6 {[%clk 0:03:02]} 5. c4 {[%clk 0:03:04.5]}
5... cxd4 {[%clk 0:03:03.2]} 6. Nxd4 {[%clk 0:03:04.2]} 6... e6 {[%clk
0:02:37.6]} 7. Nc3 {[%clk 0:03:04.7]} 7... Bc5 {[%clk 0:02:35]} 8. Nxc6 {[%clk
0:03:05.2]} 8... bxc6 {[%clk 0:02:36.9]} 9. Qg4 {[%clk 0:02:50.6]} 9... Ne7
{[%clk 0:02:22]} 10. Bd3 {[%clk 0:02:49.6]} 10... O-O {[%clk 0:02:20.4]} 11. O-O
{[%clk 0:02:48.1]} 11... Ng6 {[%clk 0:02:19.8]} 12. Na4 {[%clk 0:02:44.5]} 12...
Nxe5 {[%clk 0:02:08.3]} 13. Bxh7+ {[%clk 0:02:45.4]} 13... Kxh7 {[%clk
0:02:09.9]} 14. Qh5+ {[%clk 0:02:42.8]} 14... Kg8 {[%clk 0:02:11.4]} 15. Nxc5
{[%clk 0:02:43.7]} 15... Nxc4 {[%clk 0:02:12.2]} 16. b3 {[%clk 0:02:44.6]} 16...
Nd6 {[%clk 0:02:12.4]} 17. Bb2 {[%clk 0:02:25]} 17... f6 {[%clk 0:02:12.8]} 18.
f4 {[%clk 0:02:24.5]} 18... Qe8 {[%clk 0:02:13.1]} 19. Qe2 {[%clk 0:02:21.9]}
19... Qg6 {[%clk 0:02:02.8]} 20. Rae1 {[%clk 0:02:21.6]} 20... Re8 {[%clk
0:02:02.5]} 21. Rf3 {[%clk 0:02:22]} 21... Nf5 {[%clk 0:01:47.3]} 22. Qf2 {[%clk
0:02:22.8]} 22... a5 {[%clk 0:01:47.5]} 23. h3 {[%clk 0:02:21.9]} 23... Kf7
{[%clk 0:01:38.5]} 24. Kh2 {[%clk 0:02:20.5]} 24... Nd6 {[%clk 0:01:37.7]} 25.
Rfe3 {[%clk 0:02:15.4]} 25... Nf5 {[%clk 0:01:36.6]} 26. R3e2 {[%clk 0:02:15.9]}
26... Nd6 {[%clk 0:01:25.1]} 27. Bc3 {[%clk 0:02:00.1]} 27... Nb7 {[%clk
0:01:09.9]} 28. f5 {[%clk 0:01:59.6]} 28... Qg5 {[%clk 0:00:41.4]} 29. Bd2
{[%clk 0:02:00]} 29... Qh5 {[%clk 0:00:42]} 30. g4 {[%clk 0:02:00.4]} 30... Qh7
{[%clk 0:00:40.2]} 31. Nxb7 {[%clk 0:01:53]} 31... Bxb7 {[%clk 0:00:41.2]} 32.
Qb6 {[%clk 0:01:54.3]} 32... Ba6 {[%clk 0:00:30.2]} 33. Rxe6 {[%clk 0:01:51]}
33... Qh4 {[%clk 0:00:31.5]} 34. Qc7+ {[%clk 0:01:50.6]} 34... Kf8 {[%clk
0:00:32.4]} 35. Qd6+ {[%clk 0:01:50.9]} 35... Kf7 {[%clk 0:00:29.5]} 36. Qd7+
{[%clk 0:01:51.8]} 36... Kg8 {[%clk 0:00:30.8]} 1-0

[Event "*** MasterClass Titled Tuesday Blitz"]
[Site "Chess.com"]
[Date "2017.11.07"]
[Round "6"]
[White "chidori_boruto"]
[Black "PenguinPacks"]
[Result "0-1"]
[WhiteElo "2511"]
[BlackElo "2182"]
[TimeControl "180+2"]
[EndTime "15:26:19 PST"]
[Termination "PenguinPacks won by resignation"]

1. d4 {[%clk 0:02:58.4]} 1... Nf6 {[%clk 0:03:00]} 2. Nf3 {[%clk 0:02:53.3]}
2... c5 {[%clk 0:02:58.5]} 3. c3 {[%clk 0:02:53.9]} 3... d5 {[%clk 0:02:59.4]}
4. Bf4 {[%clk 0:02:54.5]} 4... Nc6 {[%clk 0:03:00.7]} 5. e3 {[%clk 0:02:54.9]}
5... Qb6 {[%clk 0:03:01.4]} 6. Qb3 {[%clk 0:02:55.6]} 6... c4 {[%clk 0:03:02.9]}
7. Qc2 {[%clk 0:02:56.1]} 7... Bf5 {[%clk 0:03:04.1]} 8. Qc1 {[%clk 0:02:52.7]}
8... h6 {[%clk 0:03:05.2]} 9. Nbd2 {[%clk 0:02:52.8]} 9... e6 {[%clk 0:03:04]}
10. b3 {[%clk 0:02:49.9]} 10... cxb3 {[%clk 0:03:04]} 11. axb3 {[%clk
0:02:51.8]} 11... Rc8 {[%clk 0:03:04.3]} 12. Qb2 {[%clk 0:02:52.2]} 12... Nh5
{[%clk 0:02:48.9]} 13. Bg3 {[%clk 0:02:45.4]} 13... Nxg3 {[%clk 0:02:49.7]} 14.
hxg3 {[%clk 0:02:47.3]} 14... Bd6 {[%clk 0:02:50.8]} 15. Be2 {[%clk 0:02:48.5]}
15... Qc7 {[%clk 0:02:16.6]} 16. O-O {[%clk 0:02:47.7]} 16... g5 {[%clk
0:02:13.3]} 17. c4 {[%clk 0:02:47.1]} 17... f6 {[%clk 0:02:13.2]} 18. Rfe1
{[%clk 0:02:43.4]} 18... h5 {[%clk 0:02:14.3]} 19. c5 {[%clk 0:02:40.9]} 19...
Be7 {[%clk 0:02:14]} 20. b4 {[%clk 0:02:42.2]} 20... h4 {[%clk 0:02:03]} 21.
gxh4 {[%clk 0:02:42.8]} 21... g4 {[%clk 0:02:04.3]} 22. Nh2 {[%clk 0:02:40.4]}
22... g3 {[%clk 0:02:03.7]} 23. fxg3 {[%clk 0:02:40]} 23... Qxg3 {[%clk
0:02:05.6]} 24. Ndf1 {[%clk 0:02:41]} 24... Qxh4 {[%clk 0:02:05.3]} 25. b5
{[%clk 0:02:41.5]} 25... Nb8 {[%clk 0:01:52.2]} 26. Bf3 {[%clk 0:02:42.4]} 26...
Kf7 {[%clk 0:01:50.4]} 27. Qf2 {[%clk 0:02:42.9]} 27... b6 {[%clk 0:01:38.6]}
28. Qxh4 {[%clk 0:02:41.5]} 28... Rxh4 {[%clk 0:01:40.5]} 29. c6 {[%clk
0:02:38.3]} 29... a6 {[%clk 0:01:40.9]} 30. bxa6 {[%clk 0:02:39]} 30... Nxc6
{[%clk 0:01:42.1]} 31. Rec1 {[%clk 0:02:39.8]} 31... Rhh8 {[%clk 0:01:25.4]} 32.
a7 {[%clk 0:02:40.9]} 32... Nxa7 {[%clk 0:01:25.2]} 33. Rxc8 {[%clk 0:02:41.5]}
33... Nxc8 {[%clk 0:01:26.5]} 34. Ra8 {[%clk 0:02:40.8]} 34... Re8 {[%clk
0:01:21.1]} 35. Nd2 {[%clk 0:02:41.2]} 35... Nd6 {[%clk 0:01:21.8]} 36. Rxe8
{[%clk 0:02:40.2]} 36... Kxe8 {[%clk 0:01:23]} 37. Be2 {[%clk 0:02:40.7]} 37...
Kd7 {[%clk 0:01:23.8]} 38. Kf2 {[%clk 0:02:41.8]} 38... Kc6 {[%clk 0:01:22]} 39.
g4 {[%clk 0:02:43]} 39... Ne4+ {[%clk 0:01:20.4]} 40. Ke1 {[%clk 0:02:42.5]}
40... Bg6 {[%clk 0:01:08.5]} 41. Nhf3 {[%clk 0:02:43.3]} 41... Bb4 {[%clk
0:01:07.8]} 42. Kd1 {[%clk 0:02:37.8]} 42... Nc3+ {[%clk 0:01:07.9]} 43. Ke1
{[%clk 0:02:38.7]} 43... Nxe2 {[%clk 0:01:09.1]} 44. Kxe2 {[%clk 0:02:40.6]}
44... Bc2 {[%clk 0:00:59.5]} 45. Ne1 {[%clk 0:02:37.4]} 45... Ba4 {[%clk
0:01:00.6]} 46. Nd3 {[%clk 0:02:31.5]} 46... Bd6 {[%clk 0:01:00.5]} 47. Nb1
{[%clk 0:02:31.5]} 47... b5 {[%clk 0:00:54.7]} 48. Nc3 {[%clk 0:02:32.4]} 48...
Bb3 {[%clk 0:00:54.8]} 49. Nf4 {[%clk 0:02:32.2]} 49... Kd7 {[%clk 0:00:48.6]}
50. Nxb5 {[%clk 0:02:30.2]} 50... Bc4+ {[%clk 0:00:49.5]} 51. Kf3 {[%clk
0:02:29]} 51... Bxb5 {[%clk 0:00:50.5]} 0-1